Cogmind - Beta 13 @@@ ROGUE MODE // 2024.07.02 @ 20:13:16 Player: Jazzer Result: Destroyed by D-53 Grenadier with Mini Grenade Launcher Performance ------------- Evolutions (0) 0 Regions Visited (2) 400 Robots Destroyed (20) 100 Value Destroyed (365) 365 Prototype IDs (0) 0 Alien Tech Used (0) 0 Bonus (0) 0 TOTAL SCORE: 865 Bonus ------- None Cogmind --------- Core Integrity 0/250 Matter 300/300 Energy 100/100 System Corruption 3% Temperature Warm (144) Movement Rolling (200) Ox8 Location -10/Mines Parts ------- > --- POWER (1) -------- (None) > --- PROPULSION (2) --- Wheel > --- UTILITY (2) ------ Huge Storage Unit > --- WEAPON (2) ------- Particle Gun > --- INVENTORY (25) --- Wheel Compact Wheel Heat Sink Improved Heat Sink High-capacity Matter Pod (200) High-capacity Matter Pod (200) Targeting Computer Peak State ------------ > --- POWER ------------ Ion Engine > --- PROPULSION ------- Wheel Compact Wheel > --- UTILITY ---------- Heat Sink Huge Storage Unit > --- WEAPON ----------- EM Pulse Gun Medium Laser > --- INVENTORY -------- Light Treads Light Treads Aluminum Leg Aluminum Leg Wheel Wheel Heat Sink Medium Matter Pod Targeting Computer Small Laser [Rating: 8] Favorites ----------- Power Ion Engine Engine Ion Engine Propulsion Aluminum Leg Leg Aluminum Leg Wheel Compact Wheel Utility Heat Sink Device Heat Sink Storage Huge Storage Unit Weapon Medium Laser Energy Gun Medium Laser Build | -11 -10 -10 ------- Run | Yrd Mat Min Slots Evolved . | . . . Power . | . . . Propulsion . | . . . Utility . | . . . Weapon . | . . . Parts Attached 16 | . 13 3 Power 1 | . 1 . Engine 1 | . 1 . Core . | . . . Reactor . | . . . Propulsion 5 | . 4 1 Treads . | . . . Leg . | . . . Wheel 5 | . 4 1 Hover . | . . . Flight . | . . . Utility 4 | . 4 . Device 2 | . 2 . Storage 2 | . 2 . Processor . | . . . Hackware . | . . . Protection . | . . . Artifact . | . . . Weapon 6 | . 4 2 Energy Gun 6 | . 4 2 Energy Cannon . | . . . Ballistic Gun . | . . . Ballistic Cannon . | . . . Launcher . | . . . Special Weapon . | . . . Impact Weapon . | . . . Slashing Weapon . | . . . Piercing Weapon . | . . . Special Melee Weapon . | . . . Unidentified Prototypes . | . . . Parts Lost 9 | . 2 7 Power 2 | . 1 1 Propulsion 2 | . . 2 Utility 1 | . . 1 Weapon 4 | . 1 3 Highest Loss Streak 4 | . 1 4 To Critical Strikes . | . . . Average Slot Usage (%) 91 | . 95 83 Engine 13 | . 14 13 Leg 9 | . 14 . Wheel 15 | . 13 20 Device 9 | . 11 6 Storage 14 | . 14 14 Energy Gun 27 | . 27 27 Naked Turns . | . . . Heaviest Build 91 | 13 90 91 Greatest Support 26 | 20 26 26 Greatest Overweight (x) 29 | . 29 5 Average Overweight (x) 2 | . 1 3 Largest Inventory Capacity 25 | . 25 25 Average Capacity 18 | . 15 25 Most Carried 12 | . 10 12 Average Carried 7 | . 6 9 Final Capacity 25 | 8 25 25 Final Carried 10 | 6 10 7 Class Distribution -------------------- 100% | Mutant Dominant Class ---------------- Mutant | -10/Materials Mutant | -10/Mines Resources | -11 -10 -10 ----------- Run | Yrd Mat Min Matter Collected 450 | 185 176 89 Remotely . | . . . Salvage Created 744 | . 510 234 Parts 35 | . 23 12 Haulers Intercepted 1 | . 1 . Recyclers Shooed 2 | . 1 1 Parts Field Recycled . | . . . Retrieved Matter . | . . . Parts Self-Destructed . | . . . Prevented . | . . . Kills | -11 -10 -10 ------- Run | Yrd Mat Min Combat Hostiles Destroyed 13 | . 8 5 Guns 13 | . 8 5 Classes Destroyed 7 | . 7 . Worker 1 | . 1 . Builder 2 | . 1 1 Hauler 1 | . 1 . Recycler 2 | . 1 1 Operator 1 | . 1 . Swarmer 6 | . 3 3 Grunt 7 | . 5 2 Best Kill Streak 5 | . 3 5 Combat Bots Only 3 | . 2 3 Max Kills in Single Turn 2 | . 1 2 Gunslinging . | . . . Exploded . | . . . Melee . | . . . Uniques/NPCs Destroyed . | . . . Combat | -11 -10 -10 -------- Run | Yrd Mat Min Hostile Shots Fired 63 | . 34 29 Missed 16 | . 12 4 Damage Taken 847 | . 264 583 Core 259 | . 45 214 Absorbed by Shields . | . . . Core Remaining (%) 100 | 100 . . Volleys Fired 51 | . 37 14 Largest 2 | . 2 2 Hottest 115 | . 90 115 Shots Fired 102 | . 74 28 Gun 102 | . 74 28 Cannon . | . . . Launcher . | . . . Special . | . . . Kinetic . | . . . Thermal 60 | . 37 23 Explosive . | . . . Electromagnetic 42 | . 37 5 Robot Hit Streak 12 | . 9 12 Robot Miss Streak 4 | . 4 3 Penetration Max . | . . . Secondary Targets 1 | . . 1 Max Gunslinging Chain 1 | . . 1 Shots Hit Robots 64 | . 46 18 Core Hits 32 | . 20 12 Critical Kills . | . . . Critical Parts Destroyed . | . . . Critical Strikes 6 | . 5 1 Burn 4 | . 4 . Corrupt 2 | . 1 1 Melee Attacks . | . . . Impact . | . . . Slashing . | . . . Piercing . | . . . Sneak Attacks . | . . . Combat Hostiles . | . . . Follow-up Attacks . | . . . Damage Inflicted 915 | . 651 264 Guns 878 | . 614 264 Cannons . | . . . Explosions 37 | . 37 . Melee . | . . . Ramming . | . . . Kinetic . | . . . Thermal 535 | . 340 195 Explosive . | . . . Electromagnetic 380 | . 311 69 Impact . | . . . Slashing . | . . . Piercing . | . . . Highest Corruption 3 | . 3 3 Average Corruption 2 | . 2 3 Corruption Purged . | . . . Corruption Blocked . | . . . Effects 16 | . 9 7 Message Errors 2 | . 1 1 Matter Fused 2 | . 1 1 Heat Flow Errors 5 | . 3 2 Energy Discharges 2 | . . 2 Data Loss (minor) 4 | . 3 1 Data Loss (major) 1 | . 1 . Overload Shots . | . . . Overflow Damage 20 | . 20 . Projectiles . | . . . Explosions 20 | . 20 . Melee . | . . . Knockbacks . | . . . Impact . | . . . Kinetic . | . . . Secondary . | . . . Self-Inflicted Damage 31 | . 31 . Shots 1 | . 1 . Rammed . | . . . Targets Rammed . | . . . Kicked . | . . . Crushed . | . . . Highest Temperature 312 | . 312 188 Average Temperature 94 | . 108 73 Received Heat Transfer 162 | . 99 63 Effects 2 | . 2 . Interference 2 | . 2 . Siege Activations . | . . . Robots Corrupted . | . . . Combat Hostiles . | . . . Parts Fried 2 | . 2 . Impact Corruptions . | . . . Robots Melted . | . . . Combat Hostiles . | . . . Parts Melted 5 | . 4 1 Heat Transferred 1741 | . 1210 531 Parts Sabotaged . | . . . Parts Stolen . | . . . Parts Stripped . | . . . Power Chain Reactions 1 | . 1 . Alert | -11 -10 -10 ------- Run | Yrd Mat Min Peak Influence 162 | . 161 162 Initial 62 | . . 62 Average 104 | . 91 130 Maximum Alert Level . | . . . Low Security (%) 100 | . 100 100 Level 1 . | . . . Level 2 . | . . . Level 3 . | . . . Level 4 . | . . . Level 5 . | . . . High Security . | . . . Max Security . | . . . Squads Dispatched 1 | . 1 . Investigation . | . . . Extermination . | . . . Reinforcement 1 | . 1 . Assault . | . . . Garrison . | . . . Intercept . | . . . Searches Triggered . | . . . Construction Impeded . | . . . Haulers Reinforced . | . . . Active Scanning Responses . | . . . Cargo Convoy Interrupts . | . . . Stealth | -11 -10 -10 --------- Run | Yrd Mat Min Distress Signals 2 | . 1 1 Communications Jammed . | . . . Distress Signals . | . . . Times Spotted 25 | . 18 7 Peak Tracking Total 4 | . 4 3 Tactical Retreats 2 | . 2 . Traps | -11 -10 -10 ------- Run | Yrd Mat Min Traps Triggered 3 | . 3 . Indirectly . | . . . Trap Hack Attempts . | . . . Triggered . | . . . Disarmed . | . . . Reprogrammed . | . . . Reused . | . . . Traps Extracted . | . . . Installed . | . . . Triggered . | . . . Machines | -11 -10 -10 ---------- Run | Yrd Mat Min Machines Disabled . | . . . Max in Single Turn . | . . . Machines Repaired . | . . . Machines Dismantled . | . . . Machines Sabotaged . | . . . Overloaded Fab Kills . | . . . Hacking | -11 -10 -10 --------- Run | Yrd Mat Min Machines Accessed 5 | . 5 . Terminals 5 | . 5 . Fabricators . | . . . Repair Stations . | . . . Recycling Units . | . . . Scanalyzers . | . . . Garrison Access . | . . . Total Hacks 12 | . 12 . Successful 4 | . 4 . Failed 8 | . 8 . Catastrophic 2 | . 2 . Database Lockouts . | . . . Manual 12 | . 12 . Terminals 12 | . 12 . Fabricators . | . . . Repair Stations . | . . . Recycling Units . | . . . Scanalyzers . | . . . Garrison Access . | . . . Terminal Hacks 2 | . 2 . Robot Analysis 2 | . 2 . Fabricator Hacks . | . . . Repair Station Hacks . | . . . Recycling Unit Hacks . | . . . Scanalyzer . | . . . Garrison Access Hacks . | . . . Unauthorized Hacks 2 | . 2 . Terminals 2 | . 2 . Botnet 2 | . 2 . Fabricators . | . . . Repair Stations . | . . . Recycling Units . | . . . Scanalyzers . | . . . Garrison Access . | . . . Data Cores Recovered . | . . . Used . | . . . Hacking Detections 5 | . 5 . Full Trace Events . | . . . Feedback Events . | . . . Feedback Blocked . | . . . Robot Schematics Acquired . | . . . Robots Built . | . . . Authchips . | . . . Time . | . . . Total Robot Build Rating . | . . . Part Schematics Acquired . | . . . Parts Built . | . . . Authchips . | . . . Time . | . . . Total Part Build Rating . | . . . Parts Repaired . | . . . Time . | . . . Parts Recycled . | . . . Recycled Matter . | . . . Retrieved Matter . | . . . Retrieved Components . | . . . Parts Scanalyzed . | . . . Part Schematics Acquired . | . . . Parts Damaged . | . . . Bothacking | -11 -10 -10 ------------ Run | Yrd Mat Min Used RIF Installer . | . . . Robots Hacked . | . . . Non-combat . | . . . Combat . | . . . Robot Hacks Applied . | . . . Relay Couplers Released . | . . . Fabnet Peak Effective % . | . . . Robots Rewired . | . . . Allies Hacked . | . . . Hacks Repelled . | . . . Allies | -11 -10 -10 -------- Run | Yrd Mat Min Total Allies . | . . . Largest Group . | . . . Highest-Rated Group . | . . . Highest-Rated Ally . | . . . Total Orders . | . . . Ally Attacks . | . . . Total Damage . | . . . Kills . | . . . Allies Corrupted . | . . . Allies Melted . | . . . Intel | -11 -10 -10 ------- Run | Yrd Mat Min Robot Analysis Total 2 | . 2 . Derelict Logs Recovered 1 | . . 1 Drone Launches . | . . . Drone Recoveries . | . . . Exploration | -11 -10 -10 ------------- Run | Yrd Mat Min Turns Passed 1110 | . 741 369 Spaces Moved 616 | 1 411 204 Core 1 | . 1 . Treads . | . . . Legs 211 | 1 210 . Wheels 404 | . 200 204 Hover . | . . . Flight . | . . . Fastest Speed 105 | 120 105 135 Average Speed 135 | 120 126 152 Slowest Speed 1500 | 120 1500 175 Overloaded Moves . | . . . Propulsion Burnouts . | . . . Robots Hopped . | . . . Cave-ins Triggered . | . . . Exploration Rate (%) 37 | 2 71 38 Regions Visited 2 Branch Regions 1 Pre-discovered Areas . | . . . Known Exits Taken . | . . . Unknown Exits Taken 2 | 1 1 . Scrap Searched 1 | . . 1 Spaces Dug . | . . . Terrain Destroyed 3 | . 3 . Melee . | . . . Projectile . | . . . AOE 3 | . 3 . Terrain Rammed . | . . . Walls Destroyed . | . . . Machines Disabled . | . . . Actions | -11 -10 -10 --------- Run | Yrd Mat Min Total 790 | . 553 237 Wait 90 | . 84 6 Move 614 | . 410 204 Hop . | . . . Pick Up 10 | . 5 5 Fast Attach 5 | . 5 . Attach 5 | . 2 3 Detach 1 | . 1 . Swap 6 | . 6 . Drop 8 | . 3 5 Fire 51 | . 37 14 Melee . | . . . Ram . | . . . Kick . | . . . Crush . | . . . Escape Stasis . | . . . Rewire . | . . . Trap . | . . . Miscellaneous . | . . . Route ------- -11/Scrapyard -10/Materials (discovered 3 exits: [*Mat x2] / [*Min]) -10/Mines History --------- Turn | Location | Event 1 | -11/Scrapyard | Discovered new exit (range 0) 1 | -11/Scrapyard | Entered Materials 248 | -10/Materials | Discovered new exit (range 16) 314 | -10/Materials | Build established: Mutant 446 | -10/Materials | Discovered new exit (range 14) 597 | -10/Materials | Discovered new exit (range 7) 742 | -10/Materials | Entered Mines 977 | -10/Mines | Assembled infested the area 994 | -10/Mines | Learned location of 1 exit from Materials 1102 | -10/Mines | Core integrity fell below 50% 1107 | -10/Mines | Core integrity fell below 20% 1111 | -10/Mines | Destroyed by D-53 Grenadier with Mini Grenade Launcher Last Messages --------------- 00977_ ALERT: Infestation in the mines, dispatching Demolisher response squad. 00979_ K-01 Serf collects debris. 00991_ System corrupted: Energy discharge (-70). 00994_ Acquired derelict log, extracted data. Data stored: Materials exits (x1). 00998_ Searching scrap... 00998_ Found Lgt. Ion Engine. 00998_ Found Lgt. Assault Rifle. 00998_ Found 14 Matter. 01036_ Acquired Hcp. Matter Pod. 01037_ Dropped Med. Matter Pod. 01041_ Acquired Hcp. Matter Pod. 01068_ System corrupted: Heat flow error (+133). 01092_ System corrupted: Component data lost. 01099_ Med. Laser destroyed. 01105_ The unstable cave ceiling collapses. 01109_ Ion Engine destroyed. 01109_ Sml. Laser destroyed. 01111_ Com. Wheel destroyed. Map ----- +----------------------------------------------------+ | ?????????### ##???????????????????????????????? | | ???????????## ##??????????????????????????????? | | ????????????## ####???????? ????????????????? | | ??????####???# ##?????? ?????????????????? | | ?????## ##?## #?????? ?????????????????? | | ???### ### #?????" ??????????????????? | | ???# ##?????" ??????????????????? | | ???## #?????? #??????????????????? | | ????## ### ##?????? #??????????????????? | | ?????## ##?## ##??????? #??????????????????? | | ??????## ##???# #???????# ##?????????????????? | | ???????## ##????# #????#### #?????????????????? | | ????????####?????# ###### ##????????????????? | | ?????????????????#==!=%|% #????????????????? | | ?????????????????# *====!% #????????????????? | | ?????????????????######## ##????????????????? | | ????????????????????????##% ##????????????????? | | ???????????????????????###[ #????????????????? | | ???????????????????????# #????????????????? | | ???????????????????????# #????????????????? | | ??????????????????????## #????????????????? | | ?????????????????????## ##???????????????? | | ????????????????????## ##??????????????? | | ????????????????????# ##?????????????? | | ??????###??????????## ##????????????? | | ?????## ##?????????# @ ##???????????? | | ?????# ##????????# #???????????? | | ????## ###??????# d #???????????? | | ????# ##?????# # #????????? | | ????# ##????#*## ## d $#????????? | | ????# ###??#%#####g ## #????????? | | ????## ####[#????g$ #??#????????? | | ?????#### #???#g ??????????? | | ????????## # #####???### ## #????????? | | ?????????# ## ##???????? ##?? #???????? | | ?????????# ### ##??????# ### ###???? ??????? | | ????###### #?# ##?????####?# #??????? #?????? | | ????# ### #??????????# #????????#?????? | | ????# !!!! ## #??????????# #??????????????? | | ????# !! ! ## #??????????# #??????????????? | | ????# !!!! ### ##??????????? #??????????????? | | ????# !!! #?## ##???????????? #??????????????? | | ????# #??####????????????? ???????????????? | | ????#########????????????????????????????????????? | | ?????????????????????????????????????????????????? | | ?????????????????????????????????????????????????? | | ?????????????????????????????????????????????????? | | ?????????????????????????????????????????????????? | | ?????????????????????????????????????????????????? | | ?????????????????????????????????????????????????? | +----------------------------------------------------+ Best States ------------- Heat Dissipation 35 Energy Generation 10 Energy Capacity 250 Matter Stores 300 Matter Capacity 300 Sight Range 16 Terrain Scan Density 10 Evasion (%) 55 Item Schematics ----------------- None Robot Schematics ------------------ None Fabricated ------------ Nothing Alien Tech Used ----------------- None Achievements -------------- None Challenges ------------ None Game ------ Seed InsulatedWeaponsBoomstick Manual? 0 Play Time 00:13:01 Cumulative 299.0 hours Start 2024.07.02 @ 20:02:50 End 2024.07.02 @ 20:13:16 Sessions 1 Manual Loads 0 Difficulty Rogue Special Mode None Game No. 172 Rogue 172 Adventurer 0 Explorer 0 Win Type - Total 2 Types 2/0/0/0/0/0/0/0/0 Lore% 53 Gallery% 62 Achievement% 38 Wizard Run 0 Options --------- Layout 0 ASCII 0 Keyboard 1 Movement Numpad Keybinds 0 Fullscreen 2 Font 24/Smallcaps Map View 76x50 Zoom Use 0% Tactical HUD 1 Map Filters NONE Filters NONE Steam 1 RUN: 51b4c036-4a65-487a-9ff8-7666564d3dd5